Cogmind - Beta 10.2 @@@ ROGUE MODE // 2022.02.09 @ 19:48:45 Player: Zach Result: Destroyed by G-34 Mercenary with Small Laser Performance ------------- Evolutions (0) 0 Regions Visited (1) 200 Robots Destroyed (14) 70 Value Destroyed (346) 346 Prototype IDs (0) 0 Alien Tech Used (0) 0 Bonus (0) 0 TOTAL SCORE: 616 Bonus ------- None Cogmind --------- Core Integrity 0/250 Matter 271/300 Energy 99/100 System Corruption 1% Temperature Cool (6) Movement Core (100) Ox1 Location -10/Materials Parts ------- > --- POWER (1) -------- (None) > --- PROPULSION (2) --- (None) > --- UTILITY (2) ------ Small Storage Unit Terrain Scan Processor > --- WEAPON (2) ------- (None) > --- INVENTORY (6) ---- Structural Scanner Peak State ------------ > --- POWER ------------ Ion Engine > --- PROPULSION ------- Aluminum Leg Aluminum Leg > --- UTILITY ---------- Small Storage Unit Tractor Beam > --- WEAPON ----------- Medium Laser Small Laser > --- INVENTORY -------- Ion Engine Small Laser [Rating: 7] Favorites ----------- Power Ion Engine Engine Ion Engine Propulsion Aluminum Leg Leg Aluminum Leg Utility Small Storage Unit Device Tractor Beam Storage Small Storage Unit Processor Seismic Analyzer Weapon Grenade Launcher Energy Gun Small Laser Launcher Grenade Launcher Build | -11 -10 ------- Run | Scr Mat Slots Evolved . | . . Power . | . . Propulsion . | . . Utility . | . . Weapon . | . . Parts Attached 13 | 7 6 Power 2 | 1 1 Engine 2 | 1 1 Core . | . . Reactor . | . . Propulsion 2 | 2 . Treads . | . . Leg 2 | 2 . Wheel . | . . Hover . | . . Flight . | . . Utility 5 | 2 3 Device 1 | 1 . Storage 2 | 1 1 Processor 2 | . 2 Hackware . | . . Protection . | . . Artifact . | . . Weapon 4 | 2 2 Energy Gun 3 | 2 1 Energy Cannon . | . . Ballistic Gun . | . . Ballistic Cannon . | . . Launcher 1 | . 1 Special Weapon . | . . Impact Weapon . | . . Slashing Weapon . | . . Piercing Weapon . | . . Special Melee Weapon . | . . Unidentified Prototypes . | . . Parts Lost 6 | . 6 Power 2 | . 2 Propulsion 2 | . 2 Utility . | . . Weapon 2 | . 2 Highest Loss Streak 3 | . 3 Average Slot Usage (%) 92 | . 92 Engine 13 | . 13 Leg 24 | . 24 Storage 21 | . 21 Processor 6 | . 6 Energy Gun 12 | . 12 Launcher 12 | . 12 Naked Turns . | . . Heaviest Build 15 | 13 15 Greatest Support 20 | 20 20 Greatest Overweight (x) 3 | 3 1 Average Overweight (x) . | 1 . Largest Inventory Capacity 6 | 6 6 Average Capacity 5 | 5 6 Most Carried 6 | 5 6 Average Carried 3 | 2 3 Final Capacity 6 | 6 6 Final Carried 2 | 2 1 Class Distribution -------------------- 100% | Mutant Dominant Class ---------------- Mutant | -10/Materials Resources | -11 -10 ----------- Run | Scr Mat Matter Collected 414 | 270 144 Remotely 30 | 30 . Salvage Created 347 | 99 248 Parts 21 | 3 18 Haulers Intercepted . | . . Recyclers Shooed . | . . Parts Field Recycled . | . . Retrieved Matter . | . . Parts Self-Destructed . | . . Prevented . | . . Kills | -11 -10 ------- Run | Scr Mat Combat Hostiles Destroyed 9 | . 9 Guns 1 | . 1 AOE 8 | . 8 Classes Destroyed 5 | 2 3 Worker 3 | 1 2 Recycler 1 | 1 . Operator 1 | . 1 Swarmer 2 | . 2 Grunt 7 | . 7 Best Kill Streak 3 | 1 3 Combat Bots Only 2 | . 2 Max Kills in Single Turn 2 | 1 2 Gunslinging . | . . Exploded 2 | . 2 Melee . | . . Uniques/NPCs Destroyed . | . . Combat | -11 -10 -------- Run | Scr Mat Damage Taken 765 | . 765 Core 258 | . 258 Absorbed by Shields . | . . Core Remaining (%) 100 | 100 . Volleys Fired 22 | 7 15 Largest 2 | 2 2 Hottest 90 | 90 80 Shots Fired 40 | 14 26 Gun 25 | 14 11 Cannon . | . . Launcher 15 | . 15 Special . | . . Kinetic . | . . Thermal 25 | 14 11 Explosive 15 | . 15 Electromagnetic . | . . Robot Hit Streak 8 | 3 8 Robot Miss Streak 3 | 3 1 Penetration Max . | . . Secondary Targets . | . . Shots Hit Robots 27 | 7 20 Core Hits 23 | 3 20 Critical Hits . | . . Critical Kills . | . . Critical Parts Destroyed . | . . Melee Attacks . | . . Impact . | . . Slashing . | . . Piercing . | . . Sneak Attacks . | . . Combat Hostiles . | . . Follow-up Attacks . | . . Damage Inflicted 977 | 69 908 Guns 150 | 69 81 Cannons . | . . Explosions 819 | . 819 Melee . | . . Ramming 8 | . 8 Kinetic . | . . Thermal 150 | 69 81 Explosive 715 | . 715 Electromagnetic 104 | . 104 Impact . | . . Slashing . | . . Piercing . | . . Highest Corruption 1 | . 1 Average Corruption 1 | . 1 Corruption Purged . | . . Overload Shots . | . . Overflow Damage 32 | . 32 Projectiles . | . . Explosions 32 | . 32 Melee . | . . Knockbacks . | . . Impact . | . . Kinetic . | . . Secondary . | . . Self-Inflicted Damage 287 | . 287 Shots 10 | . 10 Rammed 2 | . 2 Targets Rammed 2 | . 2 Kicked . | . . Crushed . | . . Highest Temperature 150 | 150 81 Average Temperature 44 | 65 31 Received Heat Transfer 228 | . 228 Siege Activations . | . . Robots Corrupted . | . . Combat Hostiles . | . . Parts Fried . | . . Impact Corruptions . | . . Robots Melted . | . . Combat Hostiles . | . . Parts Melted . | . . Heat Transferred 385 | 186 199 Parts Sabotaged . | . . Parts Stolen . | . . Parts Stripped . | . . Power Chain Reactions . | . . Missiles Intercepted . | . . Alert | -11 -10 ------- Run | Scr Mat Peak Influence 205 | 10 205 Initial 6 | . 6 Average 25 | 3 31 Maximum Alert Level 1 | . 1 Low Security (%) 99 | 100 98 Level 1 . | . 1 Level 2 . | . . Level 3 . | . . Level 4 . | . . Level 5 . | . . High Security . | . . Max Security . | . . Squads Dispatched 3 | . 3 Investigation 1 | . 1 Extermination . | . . Reinforcement 2 | . 2 Assault . | . . Garrison . | . . Intercept . | . . Construction Impeded . | . . Haulers Reinforced . | . . Stealth | -11 -10 --------- Run | Scr Mat Distress Signals 3 | . 3 Communications Jammed . | . . Distress Signals . | . . Times Spotted 24 | . 24 Peak Tracking Total 7 | . 7 Tactical Retreats 4 | . 4 Traps | -11 -10 ------- Run | Scr Mat Traps Triggered 2 | . 2 Indirectly . | . . Trap Hack Attempts . | . . Triggered . | . . Disarmed . | . . Reprogrammed . | . . Reused . | . . Traps Extracted . | . . Installed . | . . Triggered . | . . Machines | -11 -10 ---------- Run | Scr Mat Machines Disabled 5 | . 5 Max in Single Turn 2 | . 2 Machines Sabotaged . | . . Garrisons Compromised . | . . Overloaded Fab Kills . | . . Fab Network Shutdowns . | . . Hacking | -11 -10 --------- Run | Scr Mat Machines Accessed 1 | . 1 Terminals 1 | . 1 Fabricators . | . . Repair Stations . | . . Recycling Units . | . . Scanalyzers . | . . Garrison Access . | . . Total Hacks 1 | . 1 Successful 1 | . 1 Failed . | . . Catastrophic . | . . Database Lockouts . | . . Manual . | . . Terminals 1 | . 1 Fabricators . | . . Repair Stations . | . . Recycling Units . | . . Scanalyzers . | . . Garrison Access . | . . Terminal Hacks 1 | . 1 Transport Status 1 | . 1 Fabricator Hacks . | . . Repair Station Hacks . | . . Recycling Unit Hacks . | . . Scanalyzer . | . . Garrison Access Hacks . | . . Unauthorized Hacks . | . . Terminals . | . . Fabricators . | . . Repair Stations . | . . Recycling Units . | . . Scanalyzers . | . . Garrison Access . | . . Data Cores Recovered . | . . Used . | . . Hacking Detections . | . . Full Trace Events . | . . Feedback Events . | . . Feedback Blocked . | . . Robot Schematics Acquired . | . . Robots Built . | . . Matter . | . . Time . | . . Total Robot Build Rating . | . . Part Schematics Acquired . | . . Parts Built . | . . Matter . | . . Time . | . . Total Part Build Rating . | . . Parts Repaired . | . . Time . | . . Parts Recycled . | . . Recycled Matter . | . . Retrieved Matter . | . . Retrieved Components . | . . Parts Scanalyzed . | . . Part Schematics Acquired . | . . Parts Damaged . | . . Bothacking | -11 -10 ------------ Run | Scr Mat Used RIF Installer . | . . Robots Hacked . | . . Non-combat . | . . Combat . | . . Robot Hacks Applied . | . . Relay Couplers Released . | . . Robots Rewired . | . . Allies Hacked . | . . Hacks Repelled . | . . Allies | -11 -10 -------- Run | Scr Mat Total Allies . | . . Largest Group . | . . Highest-Rated Group . | . . Highest-Rated Ally . | . . Total Orders . | . . Ally Attacks . | . . Total Damage . | . . Kills . | . . Allies Corrupted . | . . Allies Melted . | . . Intel | -11 -10 ------- Run | Scr Mat Robot Analysis Total . | . . Derelict Logs Recovered . | . . Drone Launches . | . . Drone Recoveries . | . . Exploration | -11 -10 ------------- Run | Scr Mat Turns Passed 1230 | 238 992 Spaces Moved 787 | 133 654 Core 113 | 78 35 Treads . | . . Legs 674 | 55 619 Wheels . | . . Hover . | . . Flight . | . . Fastest Speed 50 | 50 100 Average Speed 127 | 153 122 Slowest Speed 200 | 200 150 Overloaded Moves . | . . Propulsion Burnouts . | . . Robots Hopped . | . . Cave-ins Triggered . | . . Exploration Rate (%) 31 | 8 55 Regions Visited 1 Branch Regions . Pre-discovered Areas . | . . Known Exits Taken . | . . Unknown Exits Taken 1 | 1 . Scrap Searched . | . . Spaces Dug . | . . Terrain Destroyed 83 | . 83 Melee . | . . Projectile . | . . AOE 83 | . 83 Terrain Rammed . | . . Walls Destroyed . | . . Machines Disabled . | . . Actions | -11 -10 --------- Run | Scr Mat Total 975 | 151 824 Wait 129 | . 129 Move 786 | 132 654 Hop . | . . Pick Up 14 | 5 9 Fast Attach 4 | 4 . Attach 5 | 3 2 Detach 1 | . 1 Swap 4 | . 4 Drop 8 | . 8 Fire 22 | 7 15 Melee . | . . Ram 2 | . 2 Kick . | . . Crush . | . . Escape Stasis . | . . Rewire . | . . Trap . | . . Miscellaneous . | . . Route ------- -11/Scrapyard -10/Materials (discovered 2 exits: [*Mat] / [*Min]) History --------- Turn | Location | Event 5 | -11/Scrapyard | Discovered new exit (range 16) 239 | -11/Scrapyard | Entered Materials 313 | -10/Materials | Build established: Mutant 868 | -10/Materials | Discovered new exit (range 16) 1087 | -10/Materials | Lost 3 parts (1p1n1w) 1195 | -10/Materials | Core integrity fell below 50% 1223 | -10/Materials | Lost 3 parts (1p1n1w) 1223 | -10/Materials | Discovered new exit (range 16) 1227 | -10/Materials | Core integrity fell below 20% 1231 | -10/Materials | Destroyed by G-34 Mercenary with Small Laser Last Messages --------------- 01191_ U-05 Engineer builds a Wall. 01192_ U-05 Engineer lays Concrete. 01192_ Aluminum Leg destroyed. 01193_ U-05 Engineer lays Concrete. 01193_ U-05 Engineer builds a Wall. 01194_ U-05 Engineer lays Concrete. 01196_ Acquired 10 matter. 01199_ O-16 Technician sends out distress signal. 01199_ O-16 Technician: "IFF HANDSHAKE FAILED. SECURING TERMINAL." 01199_ Discarded Seismic Analyzer. 01211_ ALERT: Hostiles spotted, dispatching reinforcements to Terminal M003. 01217_ Acquired 12 matter. 01219_ W-16 Scout sends out distress signal. 01222_ Slammed into W-16 Scout. 01222_ Destabilizing: Core damaged (-2). 01223_ EXIT=FOUND 01224_ Slammed into G-34 Mercenary. 01224_ Destabilizing: System interference. 01224_ Terrain Scan Processor temporarily disabled. Map ----- +----------------------------------------------------+ | | | | | | | | | | | | | | | | | | | | | | | ?????????????????????????????????????????????????? | | ?????????????????????????????????????????????????? | | ?????????????????????????????????????????????????? | | ?????????????????????????????????????????????????? | | ?????????????????????????????????????????????????? | | ?????????????????????????####????????????????????? | | ????????????????????????? #????????????????????? | | ????????????????????????# < #???????? ?????????? | | ????????????????????????# #?????? #????????? | | ????????????????????????+ ####### #????????? | | ????????????????????????# k? #????????? | | ????????????????????????# ???? T #????????? | | ????????????????????????# ?????? ########## | | ????????????????????????#r #????##? # """T""" | | ????????????????????#####@ #??? #?# # | | ????????????????????#// #?? #?# # """ | | ????????????????????#// g ## #?# ^ # """"" | | ????????????????????#!! g + #?# # """"" | | ????????????????????#!! ## #?# # """"" | | ????????????????????#// #?? #?# # """ | | ????????????????????#// ##???? #?# # ! | | ????# ??????????????##### g########## ######+### | | ?????? ??#######?##### s ## + # | | #######+## ####### ##### # #### | | *=%[ ##??# # #??# T | | ####### #???# # #??# | | #?#####/##### # #??# # | | ? #+####### #?# # + ########## | | ??? # ##/##### # # ########## | | ?????""" ## # # # | | ???? """ = ## # # #= "" """ | | ??# """ % ## # # #| "" """ | | ??# ! ## """ """ # + /!!"" """ | | ??# """ ## """ """ ######### #! " """ | | ?????""" ## """ """ #??????## # | | ?????""" # ######/#####??????## ## ###### | | ?????? ?# #??# ########## ####????? | | ?????""??# #### ## #???? | | ?????????# * = # ####### | +----------------------------------------------------+ Best States ------------- Heat Dissipation 25 Energy Generation 10 Energy Capacity 350 Matter Stores 300 Matter Capacity 300 Sight Range 16 Terrain Scan Density 85 Evasion (%) 40 Item Schematics ----------------- None Robot Schematics ------------------ None Fabricated ------------ Nothing Alien Tech Used ----------------- None Achievements -------------- None Challenges ------------ None Game ------ Seed FusionAssemblyBattery Manual? 0 Play Time 00:33:26 Cumulative 31.3 hours Start 2022.02.09 @ 19:12:31 End 2022.02.09 @ 19:48:45 Sessions 1 Manual Loads 0 Difficulty Rogue Special Mode None Game No. 45 Rogue 45 Adventurer 0 Explorer 0 Win Type - Total 0 Types 0/0/0/0/0/0/0/0/0 Lore% 6 Gallery% 21 Achievement% 16 Wizard Run 0 Options --------- ASCII 0 Keyboard 1 Movement Arrows Keybinds 0 Fullscreen 1 Font 18/SmallcapsGlow Map View 76x50 Tactical HUD 1 Map Filters NONE Filters NONE Steam 1 RUN: c69b11ac-0a47-453d-ac47-55c8193e2e67